[Event "Early Titled Tuesday Blitz | February 8 2022"]
[White "Karabalis, Harilos"]
[Black "Goryachkina, Aleksandra"]
[WhiteFideId "4621808"]
[BlackFideId "4147103"]
[WhiteElo "2168"]
[BlackElo "2426"]
[Result "0-1"]
[Round "08"]
[TimeControl "180+1"]
[Date "2022.02.08"]
[WhiteClock "0:00:16"]
[BlackClock "0:00:04"]

1. e4 {[%clk 0:03:00]}  c5 {[%clk 0:02:59]} 2. a3 {[%clk 0:03:00]}  e6 {[%clk 0:02:57]} 3. Nf3 {[%clk 0:02:58]}  d5 {[%clk 0:02:56]} 4. e5 {[%clk 0:02:58]}  d4 {[%clk 0:02:50]} 5. c3 {[%clk 0:02:57]}  Ne7 {[%clk 0:02:41]} 6. Bd3 {[%clk 0:02:51]}  Nbc6 {[%clk 0:02:34]} 7. O-O {[%clk 0:02:49]}  Nd5 {[%clk 0:02:32]} 8. Be4 {[%clk 0:02:47]}  Be7 {[%clk 0:02:21]} 9. c4 {[%clk 0:02:39]}  Nf4 {[%clk 0:02:15]} 10. d3 {[%clk 0:02:39]}  Ng6 {[%clk 0:02:15]} 11. b4 {[%clk 0:02:31]}  Ncxe5 {[%clk 0:02:12]} 12. bxc5 {[%clk 0:02:30]}  Bxc5 {[%clk 0:02:06]} 13. Nxe5 {[%clk 0:02:24]}  Nxe5 {[%clk 0:02:06]} 14. f4 {[%clk 0:02:24]}  Ng6 {[%clk 0:01:46]} 15. f5 {[%clk 0:02:24]}  exf5 {[%clk 0:01:45]} 16. Bxf5 {[%clk 0:02:24]}  O-O {[%clk 0:01:39]} 17. Nd2 {[%clk 0:02:21]}  Bxf5 {[%clk 0:01:23]} 18. Rxf5 {[%clk 0:02:20]}  b6 {[%clk 0:01:23]} 19. Ne4 {[%clk 0:02:19]}  Ne7 {[%clk 0:01:21]} 20. Rf1 {[%clk 0:01:52]}  f5 {[%clk 0:01:17]} 21. Ng5 {[%clk 0:01:52]}  Qd7 {[%clk 0:01:10]} 22. Qh5 {[%clk 0:01:43]}  h6 {[%clk 0:01:09]} 23. Nh3 {[%clk 0:01:40]}  Rf6 {[%clk 0:01:02]} 24. Bf4 {[%clk 0:01:27]}  Ng6 {[%clk 0:00:57]} 25. a4 {[%clk 0:01:19]}  Re8 {[%clk 0:00:49]} 26. a5 {[%clk 0:01:12]}  Qf7 {[%clk 0:00:32]} 27. axb6 {[%clk 0:00:48]}  axb6 {[%clk 0:00:33]} 28. Qf3 {[%clk 0:00:42]}  Rfe6 {[%clk 0:00:31]} 29. Ra8 {[%clk 0:00:40]}  Rxa8 {[%clk 0:00:28]} 30. Qxa8+ {[%clk 0:00:39]}  Re8 {[%clk 0:00:29]} 31. Qf3 {[%clk 0:00:35]}  Qe6 {[%clk 0:00:26]} 32. Qh5 {[%clk 0:00:20]}  Nxf4 {[%clk 0:00:23]} 33. Nxf4 {[%clk 0:00:20]}  Qe3+ {[%clk 0:00:22]} 34. Kh1 {[%clk 0:00:20]}  Rf8 {[%clk 0:00:14]} 35. h3 {[%clk 0:00:18]}  Qe8 {[%clk 0:00:11]} 36. Qf3 {[%clk 0:00:18]}  Qf7 {[%clk 0:00:10]} 37. Re1 {[%clk 0:00:17]}  g5 {[%clk 0:00:08]} 38. Nd5 {[%clk 0:00:17]}  Kg7 {[%clk 0:00:06]} 39. Re5 {[%clk 0:00:16]}  f4 {[%clk 0:00:04]} 40. Qe4 {[%clk 0:00:16]}  f3 {[%clk 0:00:04]} 41. gxf3 {[%clk 0:00:16]}  Qxf3+ {[%clk 0:00:04]} 42. Qxf3 {[%clk 0:00:16]}  Rxf3 {[%clk 0:00:05]} 43. Nc7 {[%clk 0:00:13]}  Rxd3 {[%clk 0:00:04]} 44. Ne6+ {[%clk 0:00:13]}  Kf6 {[%clk 0:00:04]} 45. Nxc5 {[%clk 0:00:14]}  bxc5 {[%clk 0:00:04]} 46. Rxc5 {[%clk 0:00:14]}  Rxh3+ {[%clk 0:00:05]} 47. Kg2 {[%clk 0:00:14]}  Rc3 {[%clk 0:00:04]} 48. Rc6+ {[%clk 0:00:14]}  Kg7 {[%clk 0:00:03]} 49. c5 {[%clk 0:00:15]}  h5 {[%clk 0:00:03]} 50. Rd6 {[%clk 0:00:15]}  Rxc5 {[%clk 0:00:03]} 51. Rxd4 {[%clk 0:00:15]}  Rc2+ {[%clk 0:00:03]} 52. Kg3 {[%clk 0:00:15]}  Rc3+ {[%clk 0:00:04]} 53. Kg2 {[%clk 0:00:15]}  Rc5 {[%clk 0:00:04]} 54. Rd7+ {[%clk 0:00:15]}  Kg6 {[%clk 0:00:04]} 55. Rd5 {[%clk 0:00:16]}  Rxd5 {[%clk 0:00:04]} 0-1


[Site "https://www.chess.com"]

[Event "Early Titled Tuesday Blitz | February 8 2022"]
[White "Khamdamova, Afruza"]
[Black "Demin, Vladimir"]
[WhiteFideId "14210444"]
[BlackFideId "4167457"]
[WhiteElo "1660"]
[BlackElo "2487"]
[Result "0-1"]
[Round "08"]
[TimeControl "180+1"]
[Date "2022.02.08"]
[WhiteClock "0:00:24"]
[BlackClock "0:01:02"]

1. e4 {[%clk 0:03:00]}  Nf6 {[%clk 0:02:57]} 2. e5 {[%clk 0:02:58]}  Nd5 {[%clk 0:02:57]} 3. d4 {[%clk 0:02:58]}  d6 {[%clk 0:02:57]} 4. Nf3 {[%clk 0:02:56]}  dxe5 {[%clk 0:02:57]} 5. Nxe5 {[%clk 0:02:56]}  g6 {[%clk 0:02:57]} 6. c4 {[%clk 0:02:55]}  Nb6 {[%clk 0:02:57]} 7. Nc3 {[%clk 0:02:55]}  Bg7 {[%clk 0:02:57]} 8. Nf3 {[%clk 0:02:53]}  O-O {[%clk 0:02:57]} 9. h3 {[%clk 0:02:52]}  Nc6 {[%clk 0:02:56]} 10. Be3 {[%clk 0:02:51]}  Na5 {[%clk 0:02:42]} 11. b3 {[%clk 0:02:41]}  c5 {[%clk 0:02:41]} 12. Rc1 {[%clk 0:02:38]}  cxd4 {[%clk 0:02:39]} 13. Nxd4 {[%clk 0:02:37]}  Nc6 {[%clk 0:02:37]} 14. Ndb5 {[%clk 0:02:26]}  Bf5 {[%clk 0:02:25]} 15. Be2 {[%clk 0:02:02]}  Qxd1+ {[%clk 0:02:13]} 16. Rxd1 {[%clk 0:01:59]}  a6 {[%clk 0:02:01]} 17. Bxb6 {[%clk 0:01:58]}  axb5 {[%clk 0:02:01]} 18. Nxb5 {[%clk 0:01:57]}  Rxa2 {[%clk 0:01:59]} 19. Bf3 {[%clk 0:01:53]}  Ne5 {[%clk 0:01:52]} 20. Bxb7 {[%clk 0:01:16]}  Nd3+ {[%clk 0:01:31]} 21. Kf1 {[%clk 0:01:08]}  Nb2 {[%clk 0:01:28]} 22. Re1 {[%clk 0:00:36]}  Nd3 {[%clk 0:01:25]} 23. Rd1 {[%clk 0:00:33]}  Rb8 {[%clk 0:01:22]} 24. g4 {[%clk 0:00:31]}  Nb2 {[%clk 0:01:16]} 25. Rd8+ {[%clk 0:00:29]}  Rxd8 {[%clk 0:01:13]} 26. Bxd8 {[%clk 0:00:29]}  Bd7 {[%clk 0:01:06]} 27. Bxe7 {[%clk 0:00:29]}  Nd3 {[%clk 0:01:05]} 28. Rh2 {[%clk 0:00:27]}  Be5 {[%clk 0:01:04]} 29. Rg2 {[%clk 0:00:27]}  Nf4 {[%clk 0:01:02]} 30. Rg3 {[%clk 0:00:24]}  Ra1# {[%clk 0:01:02]} 0-1


[Site "https://www.chess.com"]

[Event "Early Titled Tuesday Blitz | February 8 2022"]
[White "Krzywda, Andrzej"]
[Black "Dew, Brian"]
[WhiteFideId "1114565"]
[BlackFideId "6000495"]
[WhiteElo "2098"]
[BlackElo "2118"]
[Result "1-0"]
[Round "08"]
[TimeControl "180+1"]
[Date "2022.02.08"]
[WhiteClock "0:00:36"]
[BlackClock "0:00:01"]

1. d4 {[%clk 0:03:00]}  b6 {[%clk 0:02:56]} 2. Nf3 {[%clk 0:02:59]}  Bb7 {[%clk 0:02:56]} 3. g3 {[%clk 0:02:59]}  Nf6 {[%clk 0:02:53]} 4. Bg2 {[%clk 0:02:59]}  c5 {[%clk 0:02:52]} 5. dxc5 {[%clk 0:02:57]}  bxc5 {[%clk 0:02:52]} 6. c4 {[%clk 0:02:56]}  g6 {[%clk 0:02:46]} 7. O-O {[%clk 0:02:55]}  Bg7 {[%clk 0:02:46]} 8. Nc3 {[%clk 0:02:56]}  O-O {[%clk 0:02:45]} 9. Qb3 {[%clk 0:02:56]}  Qc8 {[%clk 0:02:39]} 10. Bf4 {[%clk 0:02:55]}  Nc6 {[%clk 0:02:36]} 11. Ne5 {[%clk 0:02:55]}  d6 {[%clk 0:02:32]} 12. Nxc6 {[%clk 0:02:48]}  Bxc6 {[%clk 0:02:33]} 13. Nd5 {[%clk 0:02:47]}  Nxd5 {[%clk 0:02:23]} 14. cxd5 {[%clk 0:02:45]}  Rb8 {[%clk 0:02:23]} 15. Qe3 {[%clk 0:02:28]}  Ba8 {[%clk 0:01:43]} 16. Qxe7 {[%clk 0:02:28]}  Re8 {[%clk 0:01:43]} 17. Qxd6 {[%clk 0:02:28]}  Rxb2 {[%clk 0:01:43]} 18. Be3 {[%clk 0:02:08]}  c4 {[%clk 0:00:49]} 19. Rfc1 {[%clk 0:01:49]}  c3 {[%clk 0:00:37]} 20. Bf3 {[%clk 0:01:42]}  Rd8 {[%clk 0:00:26]} 21. Qe7 {[%clk 0:01:34]}  Bxd5 {[%clk 0:00:20]} 22. Rd1 {[%clk 0:01:28]}  Re8 {[%clk 0:00:15]} 23. Qxa7 {[%clk 0:01:14]}  Bxf3 {[%clk 0:00:15]} 24. exf3 {[%clk 0:01:15]}  c2 {[%clk 0:00:13]} 25. Rdc1 {[%clk 0:01:16]}  Rb7 {[%clk 0:00:10]} 26. Qa3 {[%clk 0:01:15]}  Bxa1 {[%clk 0:00:10]} 27. Rxa1 {[%clk 0:01:16]}  Rb1+ {[%clk 0:00:10]} 28. Rxb1 {[%clk 0:01:07]}  cxb1=Q+ {[%clk 0:00:10]} 29. Kg2 {[%clk 0:01:08]}  Qbb7 {[%clk 0:00:09]} 30. Qd6 {[%clk 0:01:03]}  Qcc6 {[%clk 0:00:09]} 31. Qd1 {[%clk 0:01:03]}  Qd5 {[%clk 0:00:08]} 32. Qe2 {[%clk 0:01:03]}  Rc8 {[%clk 0:00:07]} 33. h4 {[%clk 0:01:01]}  Ra8 {[%clk 0:00:07]} 34. Bh6 {[%clk 0:00:52]}  Qe6 {[%clk 0:00:05]} 35. Qc2 {[%clk 0:00:47]}  Qxa2 {[%clk 0:00:05]} 36. Qc3 {[%clk 0:00:46]}  Qab2 {[%clk 0:00:05]} 37. Qe3 {[%clk 0:00:44]}  Qf6 {[%clk 0:00:04]} 38. Bg5 {[%clk 0:00:43]}  Qe6 {[%clk 0:00:04]} 39. Qd4 {[%clk 0:00:42]}  f6 {[%clk 0:00:02]} 40. Bh6 {[%clk 0:00:38]}  Qed5 {[%clk 0:00:02]} 41. Qf4 {[%clk 0:00:38]}  Re8 {[%clk 0:00:01]} 42. h5 {[%clk 0:00:37]}  Qdf7 {[%clk 0:00:01]} 43. g4 {[%clk 0:00:36]}  Qfd5 {[%clk 0:00:01]} 44. hxg6 {[%clk 0:00:36]} 1-0


[Site "https://www.chess.com"]

[Event "Early Titled Tuesday Blitz | February 8 2022"]
[White "Kujawski, Adam"]
[Black "Ljukin, Sergei"]
[WhiteFideId "1100920"]
[BlackFideId "14102200"]
[WhiteElo "2053"]
[BlackElo "2312"]
[Result "0-1"]
[Round "08"]
[TimeControl "180+1"]
[Date "2022.02.08"]
[WhiteClock "0:00:01"]
[BlackClock "0:00:41"]

1. e4 {[%clk 0:03:00]}  e6 {[%clk 0:02:56]} 2. d4 {[%clk 0:03:00]}  d5 {[%clk 0:02:57]} 3. Nc3 {[%clk 0:03:00]}  Bb4 {[%clk 0:02:56]} 4. e5 {[%clk 0:03:00]}  Ne7 {[%clk 0:02:56]} 5. a3 {[%clk 0:03:00]}  Bxc3+ {[%clk 0:02:56]} 6. bxc3 {[%clk 0:03:01]}  c5 {[%clk 0:02:56]} 7. a4 {[%clk 0:03:01]}  Qa5 {[%clk 0:02:55]} 8. Qd2 {[%clk 0:03:01]}  Nbc6 {[%clk 0:02:55]} 9. Nf3 {[%clk 0:03:01]}  cxd4 {[%clk 0:02:54]} 10. cxd4 {[%clk 0:03:01]}  Qxd2+ {[%clk 0:02:55]} 11. Kxd2 {[%clk 0:03:00]}  Nf5 {[%clk 0:02:55]} 12. Bb2 {[%clk 0:03:00]}  Na5 {[%clk 0:02:52]} 13. Bc3 {[%clk 0:02:54]}  Nc4+ {[%clk 0:02:41]} 14. Bxc4 {[%clk 0:02:37]}  dxc4 {[%clk 0:02:41]} 15. Ng5 {[%clk 0:02:36]}  Bd7 {[%clk 0:02:39]} 16. Ne4 {[%clk 0:02:17]}  Bc6 {[%clk 0:02:39]} 17. f3 {[%clk 0:02:17]}  O-O {[%clk 0:02:27]} 18. Rhd1 {[%clk 0:02:01]}  Rad8 {[%clk 0:02:18]} 19. Ke2 {[%clk 0:01:52]}  f6 {[%clk 0:02:17]} 20. exf6 {[%clk 0:01:44]}  gxf6 {[%clk 0:02:17]} 21. Nxf6+ {[%clk 0:01:17]}  Rxf6 {[%clk 0:02:09]} 22. d5 {[%clk 0:01:17]}  Rg6 {[%clk 0:01:49]} 23. dxc6 {[%clk 0:01:08]}  Rxg2+ {[%clk 0:01:48]} 24. Ke1 {[%clk 0:01:01]}  Rxd1+ {[%clk 0:01:46]} 25. Rxd1 {[%clk 0:00:58]}  bxc6 {[%clk 0:01:47]} 26. Rd2 {[%clk 0:00:35]}  Rxd2 {[%clk 0:01:40]} 27. Kxd2 {[%clk 0:00:35]}  Kf7 {[%clk 0:01:40]} 28. Be5 {[%clk 0:00:24]}  Kg6 {[%clk 0:01:31]} 29. Kc3 {[%clk 0:00:13]}  Nh4 {[%clk 0:01:14]} 30. Kxc4 {[%clk 0:00:12]}  Nxf3 {[%clk 0:01:13]} 31. Bb8 {[%clk 0:00:12]}  a6 {[%clk 0:01:08]} 32. Kc5 {[%clk 0:00:11]}  Kf5 {[%clk 0:01:08]} 33. Kxc6 {[%clk 0:00:10]}  e5 {[%clk 0:01:08]} 34. Kb6 {[%clk 0:00:09]}  Nxh2 {[%clk 0:01:07]} 35. Kxa6 {[%clk 0:00:09]}  Nf3 {[%clk 0:01:07]} 36. Kb6 {[%clk 0:00:06]}  h5 {[%clk 0:01:04]} 37. a5 {[%clk 0:00:06]}  h4 {[%clk 0:01:04]} 38. a6 {[%clk 0:00:07]}  h3 {[%clk 0:01:04]} 39. a7 {[%clk 0:00:07]}  h2 {[%clk 0:01:05]} 40. a8=Q {[%clk 0:00:05]}  h1=Q {[%clk 0:01:05]} 41. Qd5 {[%clk 0:00:05]}  Qg1+ {[%clk 0:01:01]} 42. Kc6 {[%clk 0:00:04]}  Nd4+ {[%clk 0:00:56]} 43. Kc5 {[%clk 0:00:02]}  Ne6+ {[%clk 0:00:51]} 44. Kc4 {[%clk 0:00:02]}  Qg7 {[%clk 0:00:43]} 45. Qd3+ {[%clk 0:00:01]}  Kf6 {[%clk 0:00:41]} 46. Qf3+ {[%clk 0:00:01]}  Nf4 {[%clk 0:00:41]} 0-1


[Site "https://www.chess.com"]

[Event "Early Titled Tuesday Blitz | February 8 2022"]
[White "Loay, Sameer"]
[Black "Mohammed, Dilshad"]
[WhiteFideId "8104239"]
[BlackFideId "5050421"]
[WhiteElo "2040"]
[BlackElo "2153"]
[Result "1-0"]
[Round "08"]
[TimeControl "180+1"]
[Date "2022.02.08"]
[WhiteClock "0:02:25"]
[BlackClock "0:01:23"]

1. Nf3 {[%clk 0:03:00]}  Nf6 {[%clk 0:02:59]} 2. g3 {[%clk 0:03:01]}  d5 {[%clk 0:02:59]} 3. Bg2 {[%clk 0:03:02]}  e6 {[%clk 0:02:59]} 4. O-O {[%clk 0:03:03]}  Be7 {[%clk 0:03:00]} 5. d3 {[%clk 0:03:04]}  O-O {[%clk 0:03:00]} 6. Nbd2 {[%clk 0:03:04]}  a5 {[%clk 0:02:58]} 7. e4 {[%clk 0:03:04]}  a4 {[%clk 0:02:58]} 8. a3 {[%clk 0:03:05]}  c5 {[%clk 0:02:56]} 9. Re1 {[%clk 0:03:04]}  Nc6 {[%clk 0:02:56]} 10. Qe2 {[%clk 0:03:05]}  dxe4 {[%clk 0:02:52]} 11. dxe4 {[%clk 0:03:05]}  e5 {[%clk 0:02:51]} 12. Nc4 {[%clk 0:03:04]}  Qc7 {[%clk 0:02:51]} 13. Bg5 {[%clk 0:03:04]}  Bg4 {[%clk 0:02:46]} 14. c3 {[%clk 0:03:02]}  Rad8 {[%clk 0:02:18]} 15. h3 {[%clk 0:03:01]}  Bh5 {[%clk 0:02:17]} 16. Bxf6 {[%clk 0:02:59]}  Bxf6 {[%clk 0:02:17]} 17. Ne3 {[%clk 0:02:59]}  Ne7 {[%clk 0:02:16]} 18. g4 {[%clk 0:02:56]}  Bg6 {[%clk 0:02:13]} 19. g5 {[%clk 0:02:56]}  Bxe4 {[%clk 0:02:13]} 20. gxf6 {[%clk 0:02:57]}  gxf6 {[%clk 0:02:13]} 21. Ng4 {[%clk 0:02:55]}  Bc6 {[%clk 0:02:03]} 22. Nxf6+ {[%clk 0:02:54]}  Kh8 {[%clk 0:02:03]} 23. Qxe5 {[%clk 0:02:51]}  Qxe5 {[%clk 0:01:59]} 24. Nxe5 {[%clk 0:02:52]}  Bxg2 {[%clk 0:01:56]} 25. Kxg2 {[%clk 0:02:53]}  Nf5 {[%clk 0:01:56]} 26. Rad1 {[%clk 0:02:48]}  Kg7 {[%clk 0:01:53]} 27. Nh5+ {[%clk 0:02:47]}  Kh6 {[%clk 0:01:53]} 28. Nf4 {[%clk 0:02:44]}  Kg5 {[%clk 0:01:49]} 29. Nd5 {[%clk 0:02:39]}  Nh4+ {[%clk 0:01:47]} 30. Kf1 {[%clk 0:02:35]}  Rde8 {[%clk 0:01:42]} 31. f4+ {[%clk 0:02:34]}  Kf5 {[%clk 0:01:36]} 32. Nd7 {[%clk 0:02:31]}  Rxe1+ {[%clk 0:01:34]} 33. Rxe1 {[%clk 0:02:32]}  Rd8 {[%clk 0:01:34]} 34. Re5+ {[%clk 0:02:31]}  Kg6 {[%clk 0:01:34]} 35. Rg5+ {[%clk 0:02:27]}  Kh6 {[%clk 0:01:29]} 36. N7f6 {[%clk 0:02:26]}  Nf3 {[%clk 0:01:23]} 37. Ng4# {[%clk 0:02:25]} 1-0


[Site "https://www.chess.com"]

[Event "Early Titled Tuesday Blitz | February 8 2022"]
[White "Lodici, Lorenzo"]
[Black "Bacrot, Etienne"]
[WhiteFideId "884189"]
[BlackFideId "605506"]
[WhiteElo "2265"]
[BlackElo "2673"]
[Result "0-1"]
[Round "08"]
[TimeControl "180+1"]
[Date "2022.02.08"]
[WhiteClock "0:00:02"]
[BlackClock "0:00:47"]

1. e4 {[%clk 0:03:00]}  d5 {[%clk 0:02:58]} 2. exd5 {[%clk 0:03:00]}  Qxd5 {[%clk 0:02:59]} 3. Nf3 {[%clk 0:03:00]}  Nc6 {[%clk 0:02:58]} 4. Be2 {[%clk 0:02:57]}  Nf6 {[%clk 0:02:57]} 5. d4 {[%clk 0:02:57]}  Bg4 {[%clk 0:02:56]} 6. h3 {[%clk 0:02:57]}  Bh5 {[%clk 0:02:53]} 7. c4 {[%clk 0:02:54]}  Qa5+ {[%clk 0:02:46]} 8. Bd2 {[%clk 0:02:52]}  Qf5 {[%clk 0:02:29]} 9. g4 {[%clk 0:02:49]}  Nxg4 {[%clk 0:02:27]} 10. hxg4 {[%clk 0:02:50]}  Bxg4 {[%clk 0:02:27]} 11. Be3 {[%clk 0:02:25]}  e5 {[%clk 0:02:25]} 12. d5 {[%clk 0:02:22]}  Bb4+ {[%clk 0:02:12]} 13. Nbd2 {[%clk 0:02:13]}  Bxf3 {[%clk 0:01:55]} 14. Bxf3 {[%clk 0:02:12]}  Bxd2+ {[%clk 0:01:47]} 15. Kxd2 {[%clk 0:02:10]}  Ne7 {[%clk 0:01:42]} 16. Qe2 {[%clk 0:01:37]}  e4 {[%clk 0:01:37]} 17. Bg2 {[%clk 0:01:24]}  Qe5 {[%clk 0:01:34]} 18. Kc2 {[%clk 0:01:24]}  O-O-O {[%clk 0:01:30]} 19. Qg4+ {[%clk 0:01:05]}  f5 {[%clk 0:01:30]} 20. Qg3 {[%clk 0:01:05]}  Qf6 {[%clk 0:01:26]} 21. Rad1 {[%clk 0:00:42]}  Qa6 {[%clk 0:01:21]} 22. Qxg7 {[%clk 0:00:30]}  Qxc4+ {[%clk 0:01:17]} 23. Kb1 {[%clk 0:00:30]}  Nxd5 {[%clk 0:01:17]} 24. Bh3 {[%clk 0:00:26]}  Rhf8 {[%clk 0:01:04]} 25. Qxh7 {[%clk 0:00:19]}  Nb4 {[%clk 0:00:49]} 26. Bxf5+ {[%clk 0:00:18]}  Kb8 {[%clk 0:00:49]} 27. Rxd8+ {[%clk 0:00:03]}  Rxd8 {[%clk 0:00:49]} 28. a3 {[%clk 0:00:02]}  Qa2+ {[%clk 0:00:46]} 29. Kc1 {[%clk 0:00:02]}  Qa1# {[%clk 0:00:47]} 0-1


[Site "https://www.chess.com"]

[Event "Early Titled Tuesday Blitz | February 8 2022"]
[White "Maksimenko, Viktor"]
[Black "Triapishko, Alexandr"]
[WhiteFideId "13710478"]
[BlackFideId "14122286"]
[WhiteElo "2269"]
[BlackElo "2479"]
[Result "1-0"]
[Round "08"]
[TimeControl "180+1"]
[Date "2022.02.08"]
[WhiteClock "0:00:51"]
[BlackClock "0:00:29"]

1. e4 {[%clk 0:03:00]}  c5 {[%clk 0:02:55]} 2. Nf3 {[%clk 0:03:00]}  Nc6 {[%clk 0:02:56]} 3. Bb5 {[%clk 0:03:00]}  g6 {[%clk 0:02:55]} 4. O-O {[%clk 0:02:58]}  Bg7 {[%clk 0:02:56]} 5. Re1 {[%clk 0:02:59]}  e5 {[%clk 0:02:56]} 6. b4 {[%clk 0:02:57]}  Nxb4 {[%clk 0:02:48]} 7. Bb2 {[%clk 0:02:55]}  Qc7 {[%clk 0:02:42]} 8. d4 {[%clk 0:02:53]}  cxd4 {[%clk 0:02:31]} 9. c3 {[%clk 0:02:52]}  Nc6 {[%clk 0:02:31]} 10. cxd4 {[%clk 0:02:47]}  exd4 {[%clk 0:02:29]} 11. Nxd4 {[%clk 0:02:34]}  Nf6 {[%clk 0:02:01]} 12. e5 {[%clk 0:02:20]}  Nd5 {[%clk 0:02:01]} 13. Bc4 {[%clk 0:01:18]}  Nxd4 {[%clk 0:01:49]} 14. Qxd4 {[%clk 0:01:16]}  Nb6 {[%clk 0:01:26]} 15. Bxf7+ {[%clk 0:01:14]}  Ke7 {[%clk 0:01:16]} 16. Bb3 {[%clk 0:01:01]}  Kd8 {[%clk 0:00:45]} 17. Nc3 {[%clk 0:00:58]}  d6 {[%clk 0:00:43]} 18. Rad1 {[%clk 0:00:52]}  Bd7 {[%clk 0:00:29]} 19. exd6 {[%clk 0:00:51]}  Qc4 {[%clk 0:00:29]} 1-0


[Site "https://www.chess.com"]

[Event "Early Titled Tuesday Blitz | February 8 2022"]
[White "Manelyuk, Daniil"]
[Black "Pantzar, Milton"]
[WhiteFideId "44173920"]
[BlackFideId "1721003"]
[WhiteElo "2222"]
[BlackElo "2340"]
[Result "0-1"]
[Round "08"]
[TimeControl "180+1"]
[Date "2022.02.08"]
[WhiteClock "0:00:02"]
[BlackClock "0:00:28"]

1. e4 {[%clk 0:03:00]}  c6 {[%clk 0:02:53]} 2. d4 {[%clk 0:02:59]}  d5 {[%clk 0:02:54]} 3. Nc3 {[%clk 0:03:00]}  dxe4 {[%clk 0:02:54]} 4. Nxe4 {[%clk 0:02:59]}  Nf6 {[%clk 0:02:55]} 5. Nxf6+ {[%clk 0:02:59]}  exf6 {[%clk 0:02:52]} 6. c3 {[%clk 0:03:00]}  Bd6 {[%clk 0:02:51]} 7. Bd3 {[%clk 0:03:00]}  O-O {[%clk 0:02:51]} 8. Qc2 {[%clk 0:03:00]}  Re8+ {[%clk 0:02:51]} 9. Ne2 {[%clk 0:03:01]}  h5 {[%clk 0:02:51]} 10. O-O {[%clk 0:03:01]}  h4 {[%clk 0:02:51]} 11. h3 {[%clk 0:03:00]}  Nd7 {[%clk 0:02:52]} 12. Be3 {[%clk 0:03:01]}  Nf8 {[%clk 0:02:51]} 13. Rae1 {[%clk 0:03:01]}  Bc7 {[%clk 0:02:49]} 14. Qd2 {[%clk 0:02:54]}  Ng6 {[%clk 0:02:33]} 15. Bxg6 {[%clk 0:02:48]}  fxg6 {[%clk 0:02:32]} 16. Bf4 {[%clk 0:02:39]}  g5 {[%clk 0:02:29]} 17. Bxc7 {[%clk 0:02:36]}  Qxc7 {[%clk 0:02:30]} 18. Nc1 {[%clk 0:02:35]}  Bf5 {[%clk 0:02:19]} 19. Nd3 {[%clk 0:02:33]}  a5 {[%clk 0:02:17]} 20. f4 {[%clk 0:02:28]}  g4 {[%clk 0:02:12]} 21. hxg4 {[%clk 0:02:28]}  Bxg4 {[%clk 0:02:13]} 22. Nc5 {[%clk 0:02:27]}  Bf5 {[%clk 0:02:06]} 23. Qf2 {[%clk 0:02:20]}  h3 {[%clk 0:02:01]} 24. gxh3 {[%clk 0:02:10]}  Bxh3 {[%clk 0:02:02]} 25. f5 {[%clk 0:02:09]}  Bxf5 {[%clk 0:01:28]} 26. Kg2 {[%clk 0:00:52]}  Bg6 {[%clk 0:01:03]} 27. Ne6 {[%clk 0:00:46]}  Qd6 {[%clk 0:01:00]} 28. Nf4 {[%clk 0:00:38]}  Be4+ {[%clk 0:00:57]} 29. Kg1 {[%clk 0:00:38]}  a4 {[%clk 0:00:50]} 30. Qg3 {[%clk 0:00:34]}  Ra5 {[%clk 0:00:49]} 31. Kf2 {[%clk 0:00:17]}  Rg5 {[%clk 0:00:46]} 32. Qh4 {[%clk 0:00:15]}  Rf5 {[%clk 0:00:35]} 33. Kg3 {[%clk 0:00:15]}  g5 {[%clk 0:00:32]} 34. Qh6 {[%clk 0:00:07]}  Rxf4 {[%clk 0:00:32]} 35. Rxe4 {[%clk 0:00:05]}  Rfxe4+ {[%clk 0:00:31]} 36. Kg2 {[%clk 0:00:04]}  Rg4+ {[%clk 0:00:29]} 37. Kf3 {[%clk 0:00:02]}  Qf4# {[%clk 0:00:28]} 0-1


[Site "https://www.chess.com"]

[Event "Early Titled Tuesday Blitz | February 8 2022"]
[White "Manon-og, Ramon Jr."]
[Black "Fajdetic, Hrvoje"]
[WhiteFideId "5200776"]
[BlackFideId "14501945"]
[WhiteElo "2348"]
[BlackElo "2140"]
[Result "0-1"]
[Round "08"]
[TimeControl "180+1"]
[Date "2022.02.08"]
[WhiteClock "0:00:01"]
[BlackClock "0:00:14"]

1. e4 {[%clk 0:01:49]}  e6 {[%clk 0:02:56]} 2. d4 {[%clk 0:01:48]}  d5 {[%clk 0:02:56]} 3. Nd2 {[%clk 0:01:48]}  dxe4 {[%clk 0:02:57]} 4. Nxe4 {[%clk 0:01:48]}  Nd7 {[%clk 0:02:58]} 5. Bd3 {[%clk 0:01:47]}  Ngf6 {[%clk 0:02:59]} 6. Nf3 {[%clk 0:01:45]}  Nxe4 {[%clk 0:02:59]} 7. Bxe4 {[%clk 0:01:45]}  Nf6 {[%clk 0:03:00]} 8. Bd3 {[%clk 0:01:45]}  c5 {[%clk 0:03:00]} 9. dxc5 {[%clk 0:01:44]}  Bxc5 {[%clk 0:02:58]} 10. Bg5 {[%clk 0:01:44]}  Qa5+ {[%clk 0:02:56]} 11. c3 {[%clk 0:01:37]}  Nd5 {[%clk 0:02:53]} 12. O-O {[%clk 0:01:25]}  Qc7 {[%clk 0:02:47]} 13. Qe2 {[%clk 0:01:18]}  Bd7 {[%clk 0:02:39]} 14. Rad1 {[%clk 0:01:14]}  Nf4 {[%clk 0:02:33]} 15. Qe5 {[%clk 0:00:57]}  Qxe5 {[%clk 0:02:05]} 16. Nxe5 {[%clk 0:00:58]}  Nxd3 {[%clk 0:02:03]} 17. Rxd3 {[%clk 0:00:59]}  Bc6 {[%clk 0:01:46]} 18. Nxc6 {[%clk 0:00:57]}  bxc6 {[%clk 0:01:47]} 19. Rfd1 {[%clk 0:00:55]}  f6 {[%clk 0:01:43]} 20. Bh4 {[%clk 0:00:52]}  Be7 {[%clk 0:01:26]} 21. f4 {[%clk 0:00:26]}  Rd8 {[%clk 0:01:17]} 22. Bf2 {[%clk 0:00:22]}  a6 {[%clk 0:01:12]} 23. Rxd8+ {[%clk 0:00:19]}  Bxd8 {[%clk 0:01:09]} 24. Rd6 {[%clk 0:00:19]}  Kf7 {[%clk 0:00:59]} 25. Rxc6 {[%clk 0:00:20]}  a5 {[%clk 0:00:57]} 26. Rc8 {[%clk 0:00:19]}  Re8 {[%clk 0:00:53]} 27. Kf1 {[%clk 0:00:19]}  h5 {[%clk 0:00:49]} 28. c4 {[%clk 0:00:18]}  Be7 {[%clk 0:00:32]} 29. Rxe8 {[%clk 0:00:14]}  Kxe8 {[%clk 0:00:33]} 30. c5 {[%clk 0:00:13]}  Kd7 {[%clk 0:00:33]} 31. a3 {[%clk 0:00:13]}  a4 {[%clk 0:00:32]} 32. b4 {[%clk 0:00:14]}  axb3 {[%clk 0:00:32]} 33. Bd4 {[%clk 0:00:12]}  Bxc5 {[%clk 0:00:30]} 34. Bb2 {[%clk 0:00:11]}  Kc6 {[%clk 0:00:28]} 35. Ke2 {[%clk 0:00:10]}  Kb5 {[%clk 0:00:28]} 36. Kd3 {[%clk 0:00:10]}  Ka4 {[%clk 0:00:28]} 37. Kc4 {[%clk 0:00:09]}  Bxa3 {[%clk 0:00:28]} 38. Bc3 {[%clk 0:00:06]}  b2 {[%clk 0:00:27]} 39. Bxb2 {[%clk 0:00:07]}  Bxb2 {[%clk 0:00:27]} 40. f5 {[%clk 0:00:07]}  exf5 {[%clk 0:00:27]} 41. Kd5 {[%clk 0:00:07]}  Be5 {[%clk 0:00:18]} 42. Ke6 {[%clk 0:00:07]}  Bxh2 {[%clk 0:00:17]} 43. Kxf5 {[%clk 0:00:07]}  Be5 {[%clk 0:00:16]} 44. Kg6 {[%clk 0:00:07]}  h4 {[%clk 0:00:13]} 45. Kxg7 {[%clk 0:00:07]}  f5+ {[%clk 0:00:13]} 46. Kg6 {[%clk 0:00:07]}  f4 {[%clk 0:00:14]} 47. Kg5 {[%clk 0:00:06]}  f3 {[%clk 0:00:14]} 48. gxf3 {[%clk 0:00:01]}  h3 {[%clk 0:00:14]} 0-1


[Site "https://www.chess.com"]